bitfinex-derivatives/quotes_ETHF0:USTF0_20240904
["timestamp","ask_amount","ask_price","bid_price","bid_amount"]
[1725461011743,3.6384,2421.7,2421.2,2.86]
[1725461012101,3.6384,2421.7,2421.1,3.2078]
[1725461012102,0.84344,2422.4,2421.5,6.0678]
[1725461012144,0.84344,2422.4,2421.4,2.86]
[1725461012145,0.4424,2423.0,2422.0,6.0678]
[1725461012355,0.4424,2423.0,2422.3,3.2078]
[1725461012356,0.4306,2422.8,2422.3,3.2078]
[1725461012649,3.2078,2423.8,2422.6,6.0678]
[1725461012848,3.2078,2423.8,2422.1,8.56870226]
[1725461012849,3.2078,2423.4,2422.3,0.00619195]
[1725461013041,2.86,2423.6,2422.3,0.41903195]
[1725461013042,3.62670195,2423.1,2422.3,0.41903195]
[1725461013247,3.62670195,2423.1,2422.8,3.27275]
[1725461013248,0.00619195,2423.1,2422.8,3.27275]
[1725461013446,0.00619195,2423.1,2422.8,3.2078]
[1725461013652,0.00619195,2423.1,2422.6,2.86]
[1725461013841,0.00619195,2423.1,2422.5,3.2078]
[1725461014159,0.00619195,2423.1,2422.5,6.0678]
[1725461014456,0.00619195,2423.1,2422.8,3.2078]
[1725461015052,0.00619195,2423.1,2422.8,6.0678]
[1725461015248,0.84688323,2423.5,2423.4,0.41266]
[1725461015449,3.4168,2424.7,2424.2,0.41251]
[1725461015649,1.44718,2425.7,2424.6,2.86]
[1725461015650,3.8333,2425.7,2424.6,2.86]
[1725461015850,3.8333,2425.7,2424.9,2.86]
[1725461015851,3.2078,2425.7,2424.9,2.86]
[1725461016059,1.23942,2426.4,2424.8,3.2078]
[1725461016060,0.41235,2425.2,2424.8,3.2078]
[1725461016246,3.2078,2426.2,2425.1,3.2078]
[1725461016445,3.2078,2426.2,2425.3,3.2078]
[1725461016651,0.41634532,2425.9,2425.3,3.2078]
[1725461016855,0.00410532,2425.9,2425.3,3.2078]
[1725461017158,0.00410532,2425.9,2424.9,2.97]
[1725461017159,0.41232,2425.4,2424.9,2.97]
[1725461017360,3.2078,2425.8,2424.9,2.97]
[1725461017548,3.2078,2425.8,2424.8,0.00619195]
[1725461017549,1.03068,2425.7,2424.8,0.00619195]
[1725461017748,22.30410532,2425.9,2424.8,0.00619195]
[1725461017749,0.4124,2424.9,2424.8,0.00619195]
[1725461018256,0.20245664,2425.4,2424.8,0.00619195]
[1725461018458,0.41238,2425.1,2424.8,0.00619195]
[1725461018673,0.4124,2425.0,2424.8,0.00619195]
[1725461018862,3.2078,2425.5,2424.8,0.00619195]
[1725461019061,3.2078,2425.1,2424.8,0.00619195]
[1725461019358,1.44342,2424.9,2424.8,0.00619195]
[1725461019557,0.4124,2424.9,2424.8,0.00619195]
[1725461019949,6.4124,2424.9,2424.8,0.00619195]
[1725461020171,10.5364,2424.9,2424.8,0.00619195]
[1725461020357,10.5364,2424.9,2424.3,3.2078]
[1725461020358,0.41249,2424.4,2424.3,3.2078]
[1725461020761,0.4026,2425.2,2424.3,7.3326]
[1725461020964,0.4026,2425.2,2424.3,3.2078]
[1725461021263,0.41241,2424.9,2424.5,0.00619195]
[1725461021568,0.41242,2424.8,2424.5,0.00619195]
[1725461022064,0.00619195,2425.0,2424.5,0.00619195]
[1725461022065,0.00619195,2425.0,2424.6,3.2078]
[1725461022260,0.41858195,2425.0,2424.6,3.2078]
[1725461022574,0.41858195,2425.0,2424.6,12.0548421]
[1725461022768,0.41858195,2425.0,2424.6,3.2078]
[1725461022963,0.00619195,2425.0,2424.6,3.62025]
[1725461023166,0.00619195,2425.0,2424.7,8.8470421]
[1725461023369,4.0456,2426.0,2424.9,3.6202]
[1725461023664,0.83693,2426.0,2425.5,3.2078]
[1725461023870,4.0002,2426.9,2425.9,2.97]
[1725461023871,3.2078,2426.9,2425.9,2.97]
[1725461024052,3.2078,2426.9,2426.2,3.2078]
[1725461024258,3.61989,2426.8,2426.2,3.2078]
[1725461024563,3.61989,2426.8,2426.3,0.00619195]
[1725461024564,3.21190532,2426.8,2426.3,0.00619195]
[1725461024766,3.21190532,2426.8,2426.3,0.41834195]
[1725461024962,3.4168,2428.2,2426.7,36.09103]
[1725461025261,3.2078,2428.5,2428.0,0.41187]
[1725461025462,1.02922,2429.2,2428.4,3.2078]
[1725461025463,3.2078,2429.2,2428.4,3.2078]
[1725461025766,3.2078,2429.2,2427.3,1.02996]
[1725461025767,3.2078,2429.2,2428.6,2.97]
[1725461025957,3.2078,2428.9,2427.9,2.97]
[1725461026157,3.2078,2428.9,2427.8,3.2078]
[1725461026361,3.2078,2428.9,2427.4,8.9853984]
[1725461026362,0.41181,2428.5,2428.2,2.97617805]
[1725461026663,0.41183,2428.3,2428.2,0.00617805]
[1725461026862,0.41183,2428.3,2427.8,2.97]
[1725461026863,0.41191,2427.9,2427.1,0.82402]
[1725461027172,10.23729,2428.5,2427.4,3.2078]
[1725461027173,0.41188,2428.0,2427.4,3.2078]
[1725461027356,0.41187,2428.1,2427.4,3.2078]
[1725461027859,3.2078,2428.2,2427.5,2.97]
[1725461028064,3.179,2429.3,2427.5,2.97]
[1725461028065,0.209,2429.3,2428.1,3.2078]
[1725461028273,0.8075,2429.9,2429.2,3.2078]
[1725461028274,3.2078,2429.9,2429.2,3.2078]
[1725461028566,3.2078,2429.9,2429.3,0.00617805]
[1725461028567,0.00613172,2429.8,2429.3,0.00617805]
[1725461028761,0.41164,2429.4,2429.3,0.00617805]
[1725461028964,3.2078,2429.7,2429.3,0.00617805]
[1725461029269,0.00613172,2429.8,2429.3,0.00617805]
[1725461029662,0.41164,2429.4,2429.3,0.00617805]
[1725461029963,0.41172,2429.0,2428.8,3.2078]
[1725461030179,4.23691,2429.4,2428.8,3.2078]
[1725461030469,3.2078,2429.7,2428.8,3.2078]
[1725461030669,0.41169,2429.2,2428.8,3.2078]
[1725461030969,1.03510172,2429.8,2428.8,3.21397805]
[1725461030970,0.41172,2428.9,2428.8,3.21397805]
[1725461031162,0.41172,2428.9,2428.8,0.00617805]
[1725461031767,0.41172,2428.9,2428.2,2.97]
[1725461031768,0.41183,2428.3,2428.2,3.2078]
[1725461031969,3.2078,2428.6,2428.2,3.2078]
[1725461032166,1.23816897,2429.3,2428.2,3.2078]
[1725461032356,3.2078,2428.7,2428.2,3.2078]
[1725461032566,0.41183,2428.3,2428.2,3.2078]
[1725461032863,1.02945,2428.6,2428.0,0.00617805]
[1725461032864,0.41186,2428.1,2428.0,0.00617805]
[1725461033060,0.41196,2427.5,2427.4,3.2078]
[1725461033264,1.02953,2428.4,2426.7,3.2078]
[1725461033265,1.02983,2427.7,2426.7,3.2078]
[1725461033467,0.41201,2427.3,2426.7,3.2078]
[1725461033685,23.32983,2427.7,2426.7,3.2078]
[1725461033686,0.41199,2427.4,2426.7,3.2078]
[1725461033867,0.41199,2427.4,2427.0,3.2078]
[1725461034058,22.3,2427.7,2427.0,3.21397805]
[1725461034367,0.209,2428.8,2427.6,3.2078]
[1725461034565,3.2078,2428.9,2428.1,3.2078]
[1725461034771,3.2078,2428.6,2427.8,6.58971]
[1725461034966,0.41182,2428.4,2427.8,3.2078]
[1725461035366,0.41800805,2428.3,2427.9,0.00617805]
[1725461035567,0.00617805,2428.3,2427.9,0.00617805]
[1725461035872,4.12457805,2428.3,2427.9,0.00617805]
[1725461036172,0.00617805,2428.3,2427.9,0.00617805]
[1725461036369,0.00617805,2428.3,2428.1,3.2078]
[1725461036563,0.209,2429.7,2429.6,0.41161]
[1725461036759,1.02852,2430.8,2429.6,7.3238]
[1725461037071,4.03114844,2429.7,2429.6,3.2078]
[1725461037268,3.61955844,2429.9,2429.6,3.2078]
[1725461037580,0.61772805,2430.0,2429.6,3.2078]
[1725461037871,0.20617805,2430.0,2429.9,3.2078]
[1725461038178,4.03115844,2429.7,2429.6,3.2078]
[1725461038469,4.03115844,2429.7,2428.8,0.3818]
[1725461038470,0.41169,2429.1,2429.0,3.2078]
[1725461038659,3.61955844,2429.1,2429.0,3.2078]
[1725461039665,4.03124844,2429.1,2429.0,3.2078]
[1725461040174,3.61955844,2429.1,2429.0,3.2078]
[1725461040375,4.03124844,2429.1,2429.0,3.2078]
[1725461040565,3.61955844,2429.1,2429.0,3.2078]
[1725461040877,22.6712,2429.7,2429.0,3.2078]
[1725461040878,0.41164,2429.5,2429.0,3.2078]
[1725461041077,22.6712,2429.7,2429.3,3.2078]
[1725461041352,3.61955844,2429.4,2429.3,3.2078]
[1725461041575,0.41164,2429.4,2429.3,3.2078]
[1725461041773,4.03119844,2429.4,2429.3,3.2078]
[1725461041974,3.61955844,2429.4,2429.0,3.2078]
[1725461042178,22.6712,2429.7,2429.0,3.2078]
[1725461042378,4.03124844,2429.1,2429.0,3.2078]
[1725461042976,1.44104,2428.9,2428.8,0.00617805]
[1725461043173,1.44104,2428.9,2428.7,3.2078]
[1725461043174,0.41174,2428.8,2428.7,3.2078]
[1725461043471,4.03129844,2428.8,2428.7,3.2078]
[1725461043675,3.61955844,2428.8,2428.7,3.2078]
[1725461043972,0.8006,2429.4,2428.7,3.2078]
[1725461044171,0.8006,2429.4,2428.8,0.00617805]
[1725461044172,3.61955844,2428.9,2428.8,0.00617805]
[1725461044473,0.8006,2429.4,2428.8,3.21397805]
[1725461044474,3.61955844,2429.1,2428.8,3.21397805]
[1725461044672,3.61955844,2429.1,2428.8,3.62570805]
[1725461045064,3.61955844,2429.1,2428.8,3.21397805]
[1725461045279,3.61955844,2429.0,2428.8,3.21397805]
[1725461045580,0.41185,2428.2,2428.1,3.2078]
[1725461045872,0.41185,2428.2,2427.1,3.3708]
[1725461045873,0.40558039,2428.1,2427.7,3.2078]
[1725461046178,0.81741039,2428.3,2428.0,3.2078]
[1725461046474,0.40558039,2428.1,2428.0,3.2078]
[1725461047167,0.41188,2428.0,2427.9,0.00617805]
[1725461047368,0.81746039,2428.0,2427.9,0.00617805]
[1725461047679,0.41193,2427.7,2427.6,3.2078]
[1725461047868,0.41193,2427.7,2427.0,3.2078]
[1725461047869,0.412,2427.3,2427.0,3.2078]
[1725461048070,0.40558039,2427.2,2427.0,3.2078]
[1725461048271,1.02974,2427.9,2427.0,3.2078]
[1725461048272,0.00617805,2428.4,2427.1,0.41203]
[1725461048475,22.3,2428.3,2427.9,3.2078]
[1725461048666,22.3,2428.3,2427.8,3.2078]
[1725461048866,0.40558039,2427.9,2427.8,0.00416503]
[1725461049069,0.81747039,2427.9,2427.8,0.00416503]
[1725461049398,1.84721039,2427.9,2427.8,0.00416503]
[1725461049669,4.02527039,2427.9,2427.8,0.00416503]
[1725461049874,10.02527039,2427.9,2427.8,0.00416503]
[1725461050169,25.91338039,2427.9,2427.8,0.00416503]
[1725461050376,0.81747039,2427.9,2427.8,0.00416503]
[1725461050980,7.84721039,2427.9,2427.8,0.00416503]
[1725461051271,7.84721039,2427.9,2427.2,3.2078]
[1725461051272,1.44182,2427.6,2427.2,3.2078]
[1725461051486,0.41201,2427.3,2427.2,3.2078]
[1725461051671,0.41195,2427.6,2426.8,3.2078]
[1725461051672,0.41204,2427.1,2426.8,3.2078]
[1725461051920,1.02991,2427.5,2426.8,3.2078]
[1725461052078,3.2078,2427.6,2426.8,3.2078]
[1725461052376,0.00617805,2427.4,2426.8,3.61988]
[1725461052570,0.41201,2427.2,2426.8,3.2078]
[1725461052770,0.00617805,2427.4,2427.1,3.2078]
[1725461053078,1.02964,2428.2,2427.1,3.2078]
[1725461053079,3.2078,2428.4,2427.1,3.2078]
[1725461053271,3.2078,2428.4,2427.0,1.03012]
[1725461053272,4.23737,2428.4,2427.6,3.2078]
[1725461053471,0.41185,2428.2,2427.7,0.41192]
[1725461053669,3.2078,2428.4,2427.6,3.2078]
[1725461053875,1.1524,2428.8,2427.9,3.2078]
[1725461053876,0.41178,2428.6,2427.9,3.2078]
[1725461054077,3.2078,2428.7,2427.9,3.2078]
[1725461054377,0.00617805,2428.5,2428.1,0.00617805]
[1725461054876,1.44146,2428.2,2428.1,0.00617805]
[1725461055075,0.41195,2427.6,2427.3,3.2078]
[1725461055271,3.2078,2428.1,2427.3,3.2078]
[1725461055779,3.2078,2428.1,2427.5,0.41195]
[1725461055973,1.02957,2428.3,2427.6,3.2078]
[1725461056175,1.02957,2428.3,2426.7,0.21028403]
[1725461056176,3.2078,2428.1,2427.3,3.2078]
[1725461056486,4.2376,2427.8,2426.9,3.2078]
[1725461056673,1.02991,2427.5,2426.9,3.2078]
[1725461056880,3.2078,2428.3,2427.2,3.2078]
[1725461057186,0.21613238,2428.5,2427.2,3.2078]
[1725461057187,0.41195,2427.6,2427.2,3.2078]
[1725461057379,3.21397805,2428.0,2427.3,4.12]
[1725461057565,0.41193,2427.7,2427.2,3.2078]
[1725461057770,0.00617805,2428.0,2427.2,3.2078]
[1725461057771,3.21397805,2428.0,2427.2,3.2078]
[1725461057967,0.00617805,2428.0,2427.9,0.41189]
[1725461058179,1.02915,2429.3,2427.9,10.1184]
[1725461058381,1.02915,2429.3,2429.1,3.2078]
[1725461058382,0.41167,2429.3,2429.1,3.2078]
[1725461058571,3.2078,2429.5,2428.8,3.2078]
[1725461058967,22.3,2429.4,2428.8,3.2078]
[1725461059172,0.00617805,2429.3,2429.2,0.41167]
[1725461059483,0.2,2430.0,2429.2,2.97]
[1725461059687,0.2,2430.0,2429.7,3.2078]
[1725461059981,0.2,2430.0,2429.0,3.2078]
[1725461059982,0.41168,2429.2,2429.0,3.2078]
[1725461060179,0.41171,2429.0,2428.9,0.00617805]
[1725461060380,7.3246,2429.0,2428.2,3.2078]
[1725461060582,0.00617805,2429.2,2428.6,3.2078]
[1725461061279,0.00617805,2429.2,2428.0,3.2078]
[1725461061280,3.2078,2428.8,2428.0,3.2078]
[1725461061487,3.2078,2428.8,2427.6,2.97]
[1725461061488,3.2078,2428.8,2428.3,3.2078]
[1725461061780,0.41785805,2429.2,2428.3,3.2078]
[1725461061974,0.41785805,2429.2,2428.9,3.2078]
[1725461061975,0.00617805,2429.2,2428.9,3.2078]
[1725461062577,0.00617805,2429.2,2428.5,3.2078]
[1725461062578,4.1168,2429.1,2428.5,3.2078]
[1725461062782,6.00617805,2429.2,2428.5,3.2078]
[1725461062783,0.00617805,2429.2,2428.5,3.2078]
[1725461063472,3.2078,2429.0,2428.2,0.00617805]
[1725461063674,0.41182,2428.4,2428.2,0.00617805]
[1725461063889,7.7188,2428.9,2428.2,0.00617805]
[1725461064183,0.40477805,2429.2,2428.2,3.21397805]
[1725461064184,3.2078,2428.8,2428.2,3.21397805]
[1725461064384,0.40477805,2429.2,2428.2,3.21397805]
[1725461064577,0.40477805,2429.2,2428.5,3.2078]
[1725461064980,0.41172,2429.0,2428.5,3.2078]
[1725461065179,0.40477805,2429.2,2428.5,3.2078]
[1725461065387,0.41172,2429.0,2428.5,3.2078]
[1725461065689,0.41172,2429.0,2428.2,0.00617805]
[1725461065690,0.41153,2430.1,2429.1,0.41169]
[1725461065878,3.2078,2430.3,2428.8,2.97]
[1725461065879,0.41162,2429.6,2429.0,3.2078]
[1725461066079,0.41153,2430.1,2429.3,3.2078]
[1725461066289,0.41153,2430.1,2428.3,9.11373653]
[1725461066290,3.2078,2429.5,2428.3,3.2078]
[1725461066579,26.416,2429.9,2428.2,0.00617805]
[1725461066580,0.41182,2428.4,2428.2,0.00617805]
[1725461066895,0.41183,2428.3,2428.2,0.00617805]
[1725461067181,4.53023,2428.3,2428.2,0.00617805]
[1725461067386,10.1184,2428.3,2427.3,3.2078]
[1725461067685,3.2078,2428.1,2427.1,3.2078]
[1725461067889,3.2078,2428.1,2426.8,0.3667]
[1725461067890,1.02973,2428.0,2426.8,0.3667]
[1725461068073,0.41197,2427.5,2427.0,3.2078]
[1725461068279,1.39813,2428.0,2427.0,3.2078]
[1725461068280,3.2078,2427.9,2427.0,3.21397805]
[1725461068480,0.41194,2427.7,2427.0,3.21397805]
[1725461068778,0.41194,2427.7,2427.0,3.62602805]
[1725461068978,22.3,2427.6,2427.0,3.21397805]
[1725461069179,22.3,2427.6,2427.3,3.2078]
[1725461069477,22.3,2427.6,2427.2,0.412]
[1725461069478,3.2078,2427.5,2427.0,0.00617805]
[1725461069790,0.41197,2427.5,2427.0,3.21397805]
[1725461070285,22.3,2427.6,2427.0,3.21397805]
[1725461070286,0.412,2427.3,2427.0,3.21397805]
[1725461070487,22.3,2427.6,2427.0,3.21397805]
[1725461070879,1.07901274,2427.9,2427.0,3.21397805]
[1725461071202,0.00617805,2428.5,2427.8,3.2078]
[1725461071384,0.00617805,2428.5,2427.4,3.2078]
[1725461071385,22.3,2428.4,2427.4,3.2078]
[1725461071586,0.41194,2427.7,2427.4,3.2078]
[1725461071779,3.2078,2428.1,2427.1,3.61983]
[1725461071780,5.31647274,2428.1,2427.1,3.61983]
[1725461071980,0.412,2427.3,2427.1,3.2078]
[1725461072486,4.28681274,2427.8,2427.1,3.2078]
[1725461072689,1.07901274,2427.8,2427.1,3.2078]
[1725461072914,0.412,2427.4,2427.1,3.2078]
[1725461073098,1.02988,2427.6,2427.1,3.2078]
[1725461073291,0.41201,2427.2,2427.1,3.2078]
[1725461073878,4.53201,2427.2,2427.1,3.2078]
[1725461074286,0.41201,2427.3,2427.1,3.2078]
[1725461074491,0.41199,2427.4,2427.1,3.2078]
[1725461074991,0.41201,2427.3,2427.1,3.2078]
[1725461075384,0.3835,2427.7,2427.1,7.73982]
[1725461075578,0.3835,2427.7,2427.1,3.2078]
[1725461075786,0.3835,2427.7,2427.2,0.41201]
[1725461075990,0.7523,2427.8,2427.1,3.2078]
[1725461076201,0.41194,2427.7,2427.3,0.41199]
[1725461076486,0.41194,2427.7,2427.1,3.2078]
[1725461076487,1.02983,2427.7,2427.1,3.2078]
[1725461076689,1.44211,2427.1,2427.0,0.00617805]
[1725461076892,0.41203,2427.1,2427.0,0.00617805]
[1725461077290,22.3,2427.2,2427.0,0.00617805]
[1725461077492,22.71202,2427.2,2427.0,0.00617805]
[1725461077701,0.41211,2426.7,2426.4,3.2078]
[1725461077998,5.15008,2427.1,2426.2,0.41218]
[1725461077999,0.41212,2426.6,2426.2,0.41218]
[1725461078184,0.41212,2426.6,2426.1,3.61999]
[1725461078388,0.41209,2426.8,2426.1,3.2078]
[1725461078590,3.2078,2427.1,2426.1,3.2078]
[1725461078888,3.08486229,2427.6,2427.0,0.41203]
[1725461078889,0.3825,2427.6,2427.0,0.41203]
[1725461079090,0.3825,2427.6,2426.7,3.2078]
[1725461079091,0.00617805,2427.5,2426.7,3.2078]
[1725461079285,0.00617805,2427.5,2426.7,3.61989]
[1725461079286,0.41204,2427.1,2426.7,3.61989]
[1725461079784,0.41202,2427.2,2426.8,0.41208]
[1725461080191,0.00617805,2427.5,2426.7,3.2078]
[1725461080395,0.00617805,2427.5,2426.8,0.41208]
[1725461080396,0.41202,2427.2,2426.8,0.41208]
[1725461080692,0.00617805,2427.5,2427.0,3.2078]
[1725461081094,0.00617805,2427.5,2427.2,0.412]
[1725461081295,0.00617805,2427.5,2427.4,0.41198]
[1725461081596,3.6017,2428.4,2427.4,0.41198]
[1725461081597,1.07901274,2428.6,2427.4,3.2078]
[1725461081783,3.2078,2429.1,2428.0,3.2078]
[1725461081988,1.02947,2428.6,2428.0,3.2078]
[1725461082187,0.41179,2428.5,2428.0,3.2078]
[1725461082393,1.02936,2428.8,2428.0,3.2078]
[1725461082598,0.41185,2428.2,2428.0,3.2078]
[1725461082897,1.02949,2428.5,2428.0,3.2078]
[1725461082898,0.41186,2428.1,2428.0,3.2078]
[1725461083088,0.00617805,2428.6,2427.9,0.00617805]
[1725461083394,3.2078,2428.5,2427.9,0.41806805]
[1725461083599,1.44158,2428.0,2427.9,0.00617805]
[1725461084194,1.44158,2428.0,2427.2,3.2078]
[1725461084195,1.02983,2427.7,2427.2,3.2078]
[1725461084495,0.41199,2427.4,2427.2,3.2078]
[1725461084700,3.2078,2427.8,2427.2,3.2078]
[1725461084906,0.412,2427.3,2427.2,3.2078]
[1725461085197,4.532,2427.3,2427.2,3.2078]
[1725461085394,4.12,2427.3,2426.6,0.41211]
[1725461085591,0.41208,2426.9,2426.5,0.41212]
[1725461085789,0.00617805,2427.2,2426.6,0.41211]
[1725461085790,0.41206,2427.0,2426.6,0.41211]
[1725461085996,1.03011,2427.1,2426.4,3.5956]
[1725461086213,0.00617805,2427.2,2426.4,3.2078]
[1725461086395,0.00617805,2427.2,2426.5,0.41213]
[1725461086396,0.41205,2427.0,2426.5,0.41213]
[1725461086600,0.00617805,2427.2,2426.2,0.3646]
[1725461086601,0.00617805,2427.2,2426.7,3.2078]
[1725461086993,0.00617805,2427.2,2426.8,0.41208]
[1725461087396,0.00617805,2427.2,2427.0,0.41203]
[1725461087597,0.00617805,2427.2,2427.0,3.61983]
[1725461087804,0.00617805,2427.2,2427.1,4.53203]
[1725461088191,0.00617805,2427.2,2427.1,4.12]
[1725461088398,0.00617805,2427.2,2427.0,3.2078]
[1725461088595,0.41819805,2427.2,2427.0,3.2078]
[1725461088896,0.00617805,2427.2,2427.0,3.2078]
[1725461089299,0.00617805,2427.2,2427.1,4.53203]
[1725461089902,0.41819805,2427.2,2427.0,3.2078]
[1725461090097,0.00617805,2427.2,2427.1,4.53203]
[1725461090498,0.41819805,2427.2,2427.0,3.2078]
[1725461090702,0.00617805,2427.2,2426.7,3.2078]
[1725461090902,0.00617805,2427.2,2427.0,0.41204]
[1725461091105,0.00617805,2427.2,2427.1,0.41203]
[1725461091307,2.10871274,2428.0,2427.3,0.41198]
[1725461091508,1.46371274,2428.1,2427.5,3.2078]
[1725461091713,1.46371274,2428.1,2426.1,1.81952065]
[1725461091714,6.1778,2427.6,2426.3,1.07501377]
[1725461091906,6.1778,2427.6,2426.2,1.61252065]
[1725461091907,4.23784,2427.2,2426.2,3.41155781]
[1725461092109,1.07901274,2427.4,2426.6,3.2078]
[1725461092410,3.2078,2427.6,2427.1,3.2078]
[1725461092411,0.00617805,2427.2,2427.1,3.2078]
[1725461092605,0.00617805,2427.2,2427.1,0.41203]
[1725461092909,0.00617805,2427.2,2427.1,4.12]
[1725461093105,0.00617805,2427.2,2427.1,4.53203]
[1725461093300,1.07241924,2428.1,2427.7,0.41192]
[1725461093500,2.63822886,2428.3,2427.5,0.41196]
[1725461093501,0.41192,2427.8,2427.5,0.41196]
[1725461093726,0.4119,2427.9,2427.6,0.41194]
[1725461094102,0.41195,2427.6,2427.3,0.41199]
[1725461094305,0.41197,2427.5,2427.2,3.61981]
[1725461094624,0.41198,2427.4,2427.2,3.2078]
[1725461094806,0.00617805,2427.7,2427.2,3.2078]
[1725461095308,0.00617805,2427.7,2427.6,0.41195]
[1725461095509,0.00617805,2427.7,2427.2,3.2078]
[1725461096312,0.412,2427.3,2427.2,3.2078]
[1725461096517,0.41201,2427.3,2427.0,0.41204]
[1725461096810,0.41201,2427.3,2426.8,3.59747805]
[1725461096811,3.21397805,2427.7,2426.8,3.59747805]
[1725461097111,0.41202,2427.2,2426.9,0.41205]
[1725461097311,3.2078,2427.4,2426.8,3.59747805]
[1725461097505,3.2078,2427.4,2426.8,0.38967805]
[1725461097709,0.41206,2427.0,2426.8,0.38967805]
[1725461097907,4.23779,2427.4,2426.8,0.38967805]
[1725461097908,0.41206,2426.9,2426.8,0.38967805]
[1725461098112,0.41206,2426.9,2426.8,0.00617805]
[1725461098809,1.07241924,2427.5,2426.8,0.00617805]
[1725461098810,0.41199,2427.4,2427.2,0.41201]
[1725461099008,3.21397805,2427.7,2427.1,3.2078]
[1725461099208,0.412,2427.3,2427.0,0.41203]
[1725461099508,1.02991,2427.5,2426.8,3.59167805]
[1725461099814,0.41202,2427.2,2427.0,0.41204]
[1725461100018,1.02995,2427.5,2426.8,3.59167805]
[1725461100019,0.41203,2427.1,2426.8,3.59167805]
[1725461100311,1.07859729,2427.7,2426.8,3.59167805]
[1725461100312,3.2078,2427.4,2426.8,3.59167805]
[1725461100505,0.00617805,2427.7,2426.9,1.03016]
[1725461100706,0.00617805,2427.7,2427.6,0.41195]
[1725461100909,1.02954,2428.4,2427.6,0.41195]
[1725461100910,1.07241924,2428.5,2427.6,10.53115]
[1725461101113,1.07241924,2428.6,2428.2,0.41183]
[1725461101313,5.35263848,2428.9,2428.2,0.41183]
[1725461101314,0.4118,2428.5,2428.2,0.41183]
[1725461101613,1.07241924,2428.8,2428.1,3.2078]
[1725461101914,1.07241924,2428.8,2427.6,1.37647897]
[1725461101915,1.07241924,2428.8,2428.2,0.00617805]
[1725461102215,3.61963,2428.3,2428.2,0.00617805]
[1725461102521,10.6492,2428.3,2428.2,0.00617805]
[1725461102731,14.39861924,2428.3,2427.2,3.2078]
[1725461103083,5.30982924,2428.3,2427.5,0.41195]
[1725461103216,4.23738,2428.3,2427.3,0.3785]
[1725461103411,3.2078,2428.0,2427.3,0.3785]
[1725461103603,0.412,2427.3,2427.1,3.2078]
[1725461103803,0.00617805,2427.4,2427.1,3.2078]
[1725461104005,0.00617805,2427.4,2427.1,3.61982]
[1725461104205,0.41201,2427.3,2427.2,3.2078]
[1725461104403,0.41203,2427.2,2427.0,0.00617805]
[1725461104721,0.00617805,2427.4,2427.0,0.41822805]
[1725461104722,0.412,2427.3,2427.0,0.41822805]
[1725461104904,0.00617805,2427.4,2427.0,0.00617805]
[1725461105210,0.00617805,2427.4,2427.3,0.412]
[1725461105611,0.00617805,2427.4,2427.3,10.532]
[1725461106009,0.00617805,2427.4,2427.3,4.532]
[1725461106210,4.66221924,2428.2,2427.4,1.02996]
[1725461106211,1.07241924,2428.2,2427.4,1.02996]
[1725461106407,1.60862886,2428.3,2427.9,3.61969]
[1725461106408,0.41183,2428.3,2427.9,3.61969]
[1725461106613,3.2078,2428.4,2427.9,3.2078]
[1725461106807,22.3,2428.5,2427.9,3.2078]
[1725461107011,4.81642886,2428.7,2427.9,3.2078]
[1725461107012,4.28021924,2428.7,2427.9,3.2078]
[1725461107206,0.00617805,2428.5,2428.4,0.41181]
[1725461107511,0.00617805,2428.5,2428.4,4.52941]
[1725461107713,0.00617805,2428.5,2428.4,10.52941]
[1725461108218,0.00617805,2428.5,2428.4,0.41181]
[1725461108514,0.00617805,2428.5,2428.2,3.21397805]
[1725461108729,0.41798805,2428.5,2428.2,3.21397805]
[1725461108912,0.00617805,2428.5,2428.2,3.62581805]
[1725461109117,0.00617805,2428.5,2428.2,3.21397805]
[1725461109118,0.41181,2428.4,2428.2,3.21397805]
[1725461109313,1.4414,2428.3,2428.2,0.00617805]
[1725461109516,3.21397805,2428.5,2427.5,3.2078]
[1725461109517,0.4034,2428.4,2427.5,3.2078]
[1725461109723,0.41183,2428.3,2428.0,0.41187]
[1725461110026,0.00617805,2428.5,2427.9,3.2078]
[1725461110319,0.00617805,2428.5,2428.4,0.41181]
[1725461110518,0.00617805,2428.5,2428.4,4.52941]
[1725461110714,0.00617805,2428.5,2428.4,10.52941]
[1725461111416,0.00617805,2428.5,2428.4,4.52941]
[1725461111718,0.00617805,2428.5,2428.2,3.21397805]
[1725461111719,0.00617805,2428.5,2428.2,3.62581805]
[1725461111923,0.00617805,2428.5,2428.4,0.41181]
[1725461112420,0.00617805,2428.5,2428.4,10.52941]
[1725461112616,0.00617805,2428.5,2428.3,0.41181]
[1725461112814,0.00617805,2428.5,2428.4,0.41181]
[1725461113120,0.00617805,2428.5,2428.2,3.21397805]
[1725461113413,0.00617805,2428.5,2427.5,3.2078]
[1725461113414,6.1778,2428.3,2427.5,3.2078]
[1725461113606,6.1778,2428.3,2427.4,0.3705]
[1725461113607,1.02978,2427.9,2426.9,3.2078]
[1725461113811,1.02987,2427.6,2426.9,3.2078]
[1725461114020,4.28021924,2427.7,2427.1,0.41201]
[1725461114021,1.07241924,2427.7,2427.1,0.41201]
[1725461114331,1.07241924,2427.7,2426.9,3.2078]
[1725461114541,0.41194,2427.7,2427.2,3.6198]
[1725461114816,0.41194,2427.7,2427.1,0.00617805]
[1725461114817,3.2078,2427.7,2427.1,0.00617805]
[1725461115023,0.41201,2427.2,2427.1,0.00617805]
[1725461115318,0.41199,2427.4,2427.1,0.00617805]
[1725461115512,1.07241924,2427.7,2427.1,0.41819805]
[1725461115712,1.48435924,2427.7,2427.1,0.00617805]
[1725461115916,1.07241924,2427.7,2427.1,0.00617805]
[1725461116111,0.41208,2426.8,2426.6,3.2078]
[1725461116314,23.37241924,2427.1,2426.6,3.2078]
[1725461116521,0.41208,2426.9,2426.6,3.2078]
[1725461116712,24.58495924,2427.1,2426.6,3.2078]